bitfinex-derivatives/quotes_BNBF0:USTF0_20250128
["timestamp","ask_amount","ask_price","bid_price","bid_amount"]
[1738074698591,0.27347416,672.75,670.65,1.10733873]
[1738074698789,0.27347416,672.74,670.65,1.10733873]
[1738074698989,0.27347416,672.73,670.65,1.10733873]
[1738074699191,0.27347416,672.72,670.65,1.10733873]
[1738074699386,0.27347416,672.71,670.65,1.10733873]
[1738074699686,0.27353153,672.7,670.65,1.10733873]
[1738074699993,0.27353153,672.69,670.65,1.10733873]
[1738074700192,0.27353153,672.68,670.65,1.10733873]
[1738074700493,0.27353153,672.67,670.65,1.10733873]
[1738074700690,0.27353153,672.66,670.65,1.10733873]
[1738074700891,0.27353153,672.65,670.65,1.10733873]
[1738074701090,0.27353153,672.82,670.65,1.10733873]
[1738074701290,0.27352683,672.81,670.28,1.10733873]
[1738074701491,0.27352683,672.8,670.28,1.10733873]
[1738074701692,0.27352683,672.79,670.28,1.10733873]
[1738074701987,0.27352683,672.78,670.28,1.10733873]
[1738074702191,0.27352683,672.77,670.28,1.10733873]
[1738074702391,0.27352683,672.76,670.28,1.10733873]
[1738074702790,0.27352683,672.75,670.28,1.10733873]
[1738074702995,0.27352683,672.74,670.28,1.10733873]
[1738074703193,0.27352683,672.73,670.28,1.10733873]
[1738074703396,0.27352683,672.72,670.28,1.10733873]
[1738074703698,0.27352683,672.71,670.28,1.10733873]
[1738074703996,0.27352683,672.7,670.28,1.10733873]
[1738074704201,0.27352683,672.69,670.28,1.10733873]
[1738074704499,0.27352683,672.68,670.24,1.10733873]
[1738074704690,0.27352683,672.67,670.24,1.10733873]
[1738074704894,0.27352683,672.66,670.29,1.55435786]
[1738074705094,0.27352683,672.65,670.29,1.55435786]
[1738074705294,0.27352683,672.64,670.29,1.55435786]
[1738074705491,0.27352683,672.63,670.29,1.55435786]
[1738074705698,0.27352683,672.62,670.29,1.55435786]
[1738074705998,0.27352683,672.61,670.29,1.55435786]
[1738074706198,0.27352683,672.6,670.29,1.55435786]
[1738074706399,0.27352683,672.59,670.29,1.55435786]
[1738074706597,0.27352683,672.58,670.29,1.55435786]
[1738074706795,0.27352683,672.57,670.29,1.55435786]
[1738074706992,0.27352683,672.56,670.29,1.55435786]
[1738074707195,0.27352683,672.55,670.29,1.55435786]
[1738074707398,0.27352683,672.54,670.29,1.55435786]
[1738074707599,0.27352683,672.53,670.29,1.55435786]
[1738074707795,0.27352683,672.52,670.29,1.55435786]
[1738074708098,0.27352683,672.51,670.29,1.55435786]
[1738074708299,0.27352683,672.5,670.29,1.55435786]
[1738074708494,0.27352683,672.49,670.29,1.55435786]
[1738074708692,0.27352683,672.48,670.29,1.55435786]
[1738074708892,0.27352683,672.47,670.29,1.55435786]
[1738074709095,0.27352683,672.46,670.29,1.55435786]
[1738074709293,0.27352683,672.45,670.29,1.55435786]
[1738074709495,0.27352683,672.44,670.29,1.55435786]
[1738074709693,0.27352683,672.43,670.29,1.55435786]
[1738074709899,0.27352683,672.42,670.29,1.55435786]
[1738074710200,0.27352683,672.41,670.29,1.55435786]
[1738074710400,0.27352683,672.4,670.29,1.55435786]
[1738074710600,0.27352683,672.39,670.29,1.55435786]
[1738074710803,0.27352683,672.38,670.29,1.55435786]
[1738074711001,0.27352683,672.37,670.29,1.55435786]
[1738074711199,0.27352683,672.36,670.29,1.55435786]
[1738074711403,0.27352683,672.35,670.29,1.55435786]
[1738074711597,1.55450251,672.56,670.29,1.55435786]
[1738074711902,0.99232269,672.55,670.29,1.55435786]
[1738074712098,0.99232269,672.54,670.29,1.55435786]
[1738074712296,0.99232269,672.53,670.29,1.55435786]
[1738074712501,0.99232269,672.52,670.29,1.55435786]
[1738074712701,0.99232269,672.51,670.29,1.55435786]
[1738074712901,0.99232269,672.5,670.29,1.55435786]
[1738074713103,0.99232269,672.49,670.29,1.55435786]
[1738074713304,0.99232269,672.48,670.29,1.55435786]
[1738074713506,1.55450251,672.56,670.29,1.55435786]
[1738074713507,0.99232269,672.47,670.29,1.55435786]
[1738074713706,0.99232269,672.46,670.29,1.55435786]
[1738074713907,0.99232269,672.45,670.29,1.55435786]
[1738074714108,0.27372016,672.44,670.29,1.55435786]
[1738074714307,0.27372016,672.43,670.29,1.55435786]
[1738074714505,0.27372016,672.42,670.29,1.55435786]
[1738074714706,0.27372016,672.41,670.29,1.55435786]
[1738074714902,0.27372016,672.4,670.29,1.55435786]
[1738074715110,0.27372016,672.39,670.29,1.55435786]
[1738074715305,0.27372016,672.38,670.29,1.55435786]
[1738074715610,0.27372016,672.37,670.29,1.55435786]
[1738074715810,0.27372016,672.36,670.29,1.55435786]
[1738074716010,0.27372016,672.35,670.29,1.55435786]
[1738074716211,0.27372016,672.34,670.29,1.55435786]
[1738074716519,0.27372016,672.33,670.29,1.55435786]
[1738074716712,0.71829441,672.43,670.29,1.55435786]
[1738074716904,0.27371835,672.42,670.29,1.55435786]
[1738074717107,0.27371835,672.41,670.29,1.55435786]
[1738074717303,0.27371835,672.4,670.29,1.55435786]
[1738074717510,0.27371835,672.39,670.29,1.55435786]
[1738074717811,0.27371835,672.38,670.29,1.55435786]
[1738074718010,0.29745969,672.36,670.31,0.29836941]
[1738074718207,0.27371835,672.35,670.31,0.29836941]
[1738074718609,0.27371835,672.34,670.31,0.29836941]
[1738074718808,0.27371835,672.33,670.31,0.29836941]
[1738074719003,0.27371835,672.32,670.31,0.29836941]
[1738074719206,0.27371835,672.31,670.31,0.29836941]
[1738074719406,0.29745969,672.36,670.31,0.29836941]
[1738074719712,0.27377454,672.35,670.31,0.29836941]
[1738074720012,0.27377454,672.34,670.31,0.29836941]
[1738074720216,0.27375549,672.33,670.31,0.29836941]
[1738074720413,0.27375549,672.32,670.31,0.29836941]
[1738074720612,0.27375549,672.31,670.31,0.29836941]
[1738074720915,0.29749066,672.29,670.31,0.29836941]
[1738074721112,0.27375549,672.28,670.31,0.29836941]
[1738074721312,0.27375549,672.27,670.31,0.29836941]
[1738074721513,0.27375549,672.26,670.31,0.29836941]
[1738074721710,0.27375549,672.25,670.31,0.29836941]
[1738074722009,0.27386106,672.24,670.31,0.29836941]
[1738074722310,0.27386106,672.23,670.31,0.29836941]
[1738074722514,0.27386106,672.22,670.31,0.29836941]
[1738074722717,0.27386106,672.21,670.31,0.29836941]
[1738074722917,0.27386106,672.2,670.31,0.29836941]
[1738074723114,0.27386106,672.19,670.31,0.29836941]
[1738074723313,0.27386106,672.18,670.31,0.29836941]
[1738074723511,0.2975482,672.16,670.31,0.29836941]
[1738074723710,0.27386106,672.15,670.31,0.29836941]
[1738074723909,0.27386106,672.14,670.31,0.29836941]
[1738074724109,0.27386106,672.13,670.31,0.29836941]
[1738074724316,0.27386106,672.12,670.31,0.29836941]
[1738074724516,0.27386106,672.11,670.31,0.29836941]
[1738074724813,0.27386106,672.1,670.31,0.29836941]
[1738074725017,0.27386106,672.09,670.31,0.29836941]
[1738074725416,0.27386106,672.08,670.31,0.29836941]
[1738074725616,0.27386106,672.07,670.31,0.29836941]
[1738074725815,0.27386106,672.06,670.31,0.29836941]
[1738074726017,0.27386106,672.05,670.31,0.29836941]
[1738074726317,0.27386106,672.04,670.31,0.29836941]
[1738074726516,0.27386106,672.03,670.31,0.29836941]
[1738074726715,0.99097692,672.02,670.31,0.29836941]
[1738074726911,0.2975482,672.16,670.31,0.29836941]
[1738074727119,0.99078125,672.15,670.31,0.29836941]
[1738074727316,0.99078125,672.14,670.31,0.29836941]
[1738074727516,0.2975482,672.16,670.31,0.29836941]
[1738074727517,0.27394582,672.13,670.31,0.29836941]
[1738074727713,0.27394582,672.12,670.31,0.29836941]
[1738074727913,0.2975482,672.16,670.31,0.29836941]
[1738074727914,0.27394582,672.11,670.31,0.29836941]
[1738074728118,0.27394582,672.1,670.31,0.29836941]
[1738074728319,0.27394582,672.09,670.31,0.29836941]
[1738074728614,0.27394582,672.08,670.31,0.29836941]
[1738074728818,0.27394582,672.07,670.31,0.29836941]
[1738074729018,1.55563751,672.13,670.31,0.29836941]
[1738074729019,0.27394582,672.06,670.31,0.29836941]
[1738074729417,0.27394582,672.05,670.31,0.29836941]
[1738074729611,0.27394582,672.04,670.31,0.29836941]
[1738074729814,0.27394582,672.03,670.31,0.29836941]
[1738074730114,0.27394582,672.02,670.31,0.29836941]
[1738074730422,0.27394582,672.01,670.31,0.29836941]
[1738074730721,0.27394582,672.0,670.31,0.29836941]
[1738074731022,0.27394582,671.99,670.31,0.29836941]
[1738074731221,0.27394582,671.98,670.31,0.29836941]
[1738074731517,0.27394582,671.97,670.31,0.29836941]
[1738074731723,0.27394582,671.96,670.31,0.29836941]
[1738074732220,0.2737379,671.95,670.31,0.29836941]
[1738074732417,0.2737379,671.94,670.31,0.29836941]
[1738074732722,0.2737379,671.93,670.31,0.29836941]
[1738074732923,0.2737379,671.92,670.31,0.29836941]
[1738074733220,1.55563751,672.13,670.31,0.29836941]
[1738074733221,0.2737379,671.91,670.31,0.29836941]
[1738074733422,0.2737379,671.9,670.31,0.29836941]
[1738074733615,0.2737379,671.89,670.31,0.29836941]
[1738074733819,0.2737379,671.88,670.31,0.29836941]
[1738074734016,0.2737379,671.87,670.31,0.29836941]
[1738074734223,0.2737379,671.86,670.31,0.29836941]
[1738074734418,0.2737379,671.85,670.31,0.29836941]
[1738074734623,0.2737379,671.84,670.31,0.29836941]
[1738074734816,0.57143225,671.83,670.31,0.29836941]
[1738074735020,0.2737379,671.82,670.31,0.29836941]
[1738074735218,0.2737379,671.81,670.31,0.29836941]
[1738074735425,0.27378157,671.8,670.31,0.29836941]
[1738074735720,0.27378157,671.79,670.31,0.29836941]
[1738074735924,0.29769435,671.83,670.31,0.29836941]
[1738074735925,0.27378157,671.78,670.31,0.29836941]
[1738074736119,0.27378157,671.77,670.31,0.29836941]
[1738074736319,0.27378157,671.76,670.31,0.29836941]
[1738074736717,0.27378157,671.75,670.31,0.29836941]
[1738074737124,0.27378157,671.74,670.31,0.29836941]
[1738074737320,0.27378157,671.82,670.31,0.29836941]
[1738074737523,0.27378157,671.81,670.31,0.29836941]
[1738074737719,0.29769435,671.83,670.31,0.29836941]
[1738074737720,0.27378157,671.8,670.31,0.29836941]
[1738074737920,0.27378157,671.79,670.31,0.29836941]
[1738074738122,0.27378157,671.78,670.31,0.29836941]
[1738074738421,0.27378157,671.77,670.31,0.29836941]
[1738074738828,0.27378157,671.76,670.31,0.29836941]
[1738074739024,0.27378157,671.75,670.31,0.29836941]
[1738074739325,0.27378157,671.74,670.31,0.29836941]
[1738074739521,0.27378157,671.82,670.31,0.29836941]
[1738074739719,0.27378157,671.81,670.31,0.29836941]
[1738074740023,0.27378157,671.8,670.31,0.29836941]
[1738074740226,0.27378157,671.82,670.31,0.29836941]
[1738074740419,0.27378157,671.79,670.31,0.29836941]
[1738074740619,0.27366996,671.78,670.31,0.29836941]
[1738074740820,0.27366996,671.77,670.31,0.29836941]
[1738074741022,0.27366996,671.76,670.31,0.29836941]
[1738074741218,0.27366996,671.82,670.31,0.29836941]
[1738074741420,0.27366996,671.81,670.31,0.29836941]
[1738074741719,0.27366996,671.8,670.31,0.29836941]
[1738074741922,0.27366996,671.82,670.31,0.29836941]
[1738074742118,0.27366996,671.81,670.31,0.29836941]
[1738074742322,0.27366996,671.82,670.31,0.29836941]
[1738074742521,0.27366996,671.81,670.31,0.29836941]
[1738074742720,0.27366996,671.8,670.31,0.29836941]
[1738074742924,0.27366996,671.79,670.31,0.29836941]
[1738074743124,0.27366996,671.82,670.31,0.29836941]
[1738074743324,0.27366996,671.81,670.31,0.29836941]
[1738074743625,0.27366996,671.8,670.31,0.29836941]
[1738074743827,0.27373064,671.79,670.31,0.29836941]
[1738074744020,0.27373064,671.82,670.31,0.29836941]
[1738074744221,0.27373064,671.81,670.31,0.29836941]
[1738074744425,0.27373064,671.82,670.31,0.29836941]
[1738074744720,0.27373064,671.81,670.31,0.29836941]
[1738074744926,0.29769435,671.83,670.31,0.29836941]
[1738074751631,0.27374346,671.82,670.31,0.29836941]
[1738074753928,0.29769435,671.83,670.31,0.29836941]
[1738074754835,0.27371342,671.82,670.31,0.29836941]
[1738074755230,0.29769435,671.83,670.31,0.29836941]
[1738074757035,0.29769435,671.83,670.36,1.10818609]
[1738074758334,0.29769435,671.83,670.38,0.29833825]
[1738074759638,0.29769435,671.83,670.48,1.10818609]
[1738074759933,0.29769435,671.83,670.49,0.29828931]
[1738074762440,0.29769435,671.83,670.5,1.10818609]
[1738074762631,0.29769435,671.83,670.51,0.29828041]
[1738074765942,0.29769435,671.83,670.56,1.10818609]
[1738074766441,1.10467996,672.04,670.56,1.10818609]
[1738074767939,1.10467996,672.04,670.58,0.29824927]
[1738074769642,1.55451408,672.39,670.96,1.10818609]
[1738074769838,0.57105349,672.38,670.96,1.10818609]
[1738074770039,0.27360265,672.37,670.96,1.10818609]
[1738074770236,0.29745969,672.36,670.96,1.10818609]
[1738074770439,0.27360265,672.35,670.96,1.10818609]
[1738074771143,0.27362644,672.34,670.96,1.10818609]
[1738074771336,0.27362644,672.35,670.96,1.10818609]
[1738074771541,0.27362644,672.34,670.96,1.10818609]
[1738074771742,0.27362644,672.33,670.96,1.10818609]
[1738074772043,0.57110383,672.32,670.96,1.10818609]
[1738074772238,0.57110825,672.31,670.96,1.10818609]
[1738074772439,0.57111268,672.3,670.96,1.10818609]
[1738074772639,0.29749066,672.29,670.96,1.10818609]
[1738074772844,0.27362174,672.28,670.96,1.10818609]
[1738074773045,0.29749951,672.27,670.96,1.10818609]
[1738074773246,0.27362174,672.26,670.96,1.10818609]
[1738074773745,0.27362174,672.26,670.71,1.10818609]
[1738074773746,0.27362174,672.26,670.74,1.10818609]
[1738074774247,0.29749951,672.27,670.74,1.10818609]
[1738074774949,0.27353273,672.26,670.74,1.10818609]
[1738074775246,0.27353273,672.26,670.76,0.29816924]
[1738074777750,0.27353273,672.26,671.04,1.10818609]
[1738074777949,0.29749951,672.27,671.04,1.10818609]
[1738074778147,0.27357853,672.26,671.04,1.10818609]
[1738074779744,0.29749951,672.27,671.04,1.10818609]
[1738074779947,0.2735579,672.26,671.04,1.10818609]
[1738074780849,0.2735579,672.26,670.85,1.10818609]
[1738074781044,0.2735579,672.26,670.86,0.29812479]
[1738074783551,0.29749951,672.27,670.86,0.29812479]
[1738074785559,1.10467996,672.77,670.86,0.29812479]
[1738074787360,0.27340022,672.76,670.86,0.29812479]
[1738074787862,0.27340022,672.76,670.96,1.10818609]
[1738074788057,0.29727841,672.77,670.96,1.10818609]
[1738074788261,0.27341734,672.76,670.96,1.10818609]
[1738074790570,0.27341734,672.76,670.86,0.29812479]
[1738074791165,0.27345527,672.75,670.86,0.29812479]
[1738074791361,0.27345527,672.74,670.86,0.29812479]
[1738074791563,0.27345527,672.76,670.86,0.29812479]
[1738074791868,0.27345551,672.75,670.86,0.29812479]
[1738074792167,0.27345551,672.74,670.86,0.29812479]
[1738074792367,0.27345551,672.76,670.86,0.29812479]
[1738074792569,0.27345551,672.75,670.86,0.29812479]
[1738074792770,0.57074718,672.74,670.86,0.29812479]
[1738074792973,0.5707516,672.73,670.86,0.29812479]
[1738074793164,0.29729609,672.73,670.86,0.29812479]
[1738074793368,0.27348975,672.72,670.86,0.29812479]
[1738074793565,0.27348975,672.71,670.86,0.29812479]
[1738074793770,0.27348975,672.7,670.86,0.29812479]
[1738074793972,0.27348975,672.69,670.86,0.29812479]
[1738074794169,0.27348975,672.68,670.86,0.29812479]
[1738074794369,0.27348975,672.67,670.86,0.29812479]
[1738074794565,0.57081678,672.66,670.86,0.29812479]
[1738074794770,0.5708212,672.65,670.86,0.29812479]
[1738074795070,0.27348975,672.64,670.86,0.29812479]
[1738074795272,1.82737334,672.64,670.86,0.29812479]
[1738074795471,0.27348975,672.63,670.86,0.29812479]
[1738074796567,1.55388359,672.64,670.86,0.29812479]
[1738074796774,0.27354562,672.62,670.86,0.29812479]
[1738074797072,0.27354562,672.61,670.86,0.29812479]
[1738074797271,1.55388359,672.64,670.86,0.29812479]
[1738074797272,0.27354562,672.6,670.86,0.29812479]
[1738074797473,0.27354562,672.59,670.86,0.29812479]
[1738074797673,0.27354562,672.58,670.86,0.29812479]
[1738074797874,0.27354562,672.57,670.86,0.29812479]
[1738074798071,0.27354562,672.56,670.86,0.29812479]
[1738074798375,0.27354562,672.55,670.86,0.29812479]
[1738074798569,0.27354562,672.54,670.86,0.29812479]
[1738074798872,0.27354562,672.53,670.86,0.29812479]
[1738074799079,0.27354562,672.52,670.86,0.29812479]
[1738074799274,0.27354562,672.63,670.86,0.29812479]
[1738074799573,0.27354562,672.62,670.86,0.29812479]
[1738074799774,0.27354562,672.61,670.86,0.29812479]
[1738074799975,1.55388359,672.64,670.86,0.29812479]
[1738074800175,0.27361537,672.63,670.86,0.29812479]
[1738074800371,0.27361537,672.62,670.86,0.29812479]
[1738074800576,0.27361537,672.61,670.86,0.29812479]
[1738074801577,0.27361537,672.6,670.86,0.29812479]
[1738074801878,0.27361537,672.59,670.86,0.29812479]
[1738074802076,0.27361537,672.58,670.86,0.29812479]
[1738074802376,0.29737123,672.56,670.86,0.29812479]
[1738074802676,0.27361537,672.55,670.86,0.29812479]
[1738074802870,0.27361537,672.54,670.86,0.29812479]
[1738074803075,0.27361537,672.53,670.86,0.29812479]
[1738074803270,0.27361537,672.52,670.86,0.29812479]
[1738074803473,0.27361537,672.55,670.86,0.29812479]
[1738074803678,0.2973845,672.53,670.86,0.29812479]
[1738074803880,0.27361537,672.52,670.86,0.29812479]
[1738074804570,0.27361537,672.51,670.86,0.29812479]
[1738074804776,0.29740219,672.49,670.86,0.29812479]
[1738074804976,0.27361537,672.48,670.86,0.29812479]
[1738074805176,0.29741545,672.46,670.86,0.29812479]
[1738074805377,0.27361537,672.45,670.86,0.29812479]
[1738074805573,1.82792116,672.45,670.86,0.29812479]
[1738074805872,0.57103967,672.44,670.86,0.29812479]
[1738074806078,0.27357302,672.43,670.86,0.29812479]
[1738074807776,0.27356011,672.42,670.86,0.29812479]
[1738074808076,0.27356011,672.41,670.86,0.29812479]
[1738074808276,0.2974243,672.44,670.86,0.29812479]
[1738074808277,0.27356011,672.4,670.86,0.29812479]
[1738074808472,0.27356011,672.43,670.86,0.29812479]
[1738074808674,0.27356011,672.42,670.86,0.29812479]
[1738074808873,0.27356011,672.41,670.86,0.29812479]
[1738074809074,0.29744199,672.4,670.86,0.29812479]
[1738074809281,0.27356011,672.39,670.86,0.29812479]
[1738074812881,0.27350358,672.38,670.86,0.29812479]
[1738074813180,0.27350358,672.37,670.86,0.29812479]
[1738074813377,0.27350358,672.36,670.86,0.29812479]
[1738074813579,0.27350358,672.35,670.86,0.29812479]
[1738074813775,0.27350358,672.39,670.86,0.29812479]
[1738074813974,0.27350358,672.34,670.86,0.29812479]
[1738074814178,0.27350358,672.33,670.86,0.29812479]
[1738074814379,0.27350358,672.32,670.86,0.29812479]
[1738074814579,0.27350358,672.39,670.86,0.29812479]
[1738074814780,0.27350358,672.38,670.86,0.29812479]
[1738074814979,0.27350358,672.39,671.05,1.10818609]
[1738074815175,0.27350358,672.38,671.05,1.10818609]
[1738074815374,0.27350358,672.39,671.05,1.10818609]
[1738074815579,0.27350358,672.38,671.06,0.29803594]
[1738074815776,0.27350358,672.39,671.06,0.29803594]
[1738074815980,0.27350358,672.38,671.06,0.29803594]
[1738074816283,0.27350358,672.37,671.06,0.29803594]
[1738074816480,0.27350358,672.39,671.06,0.29803594]
[1738074816679,0.27350358,672.38,671.06,0.29803594]
[1738074816880,0.27350358,672.37,671.06,0.29803594]
[1738074817079,0.27350358,672.36,671.06,0.29803594]
[1738074817277,0.27350358,672.39,671.06,0.29803594]
[1738074817478,0.27350358,672.38,671.06,0.29803594]
[1738074817676,0.27350358,672.39,671.06,0.29803594]
[1738074817880,0.29744199,672.4,671.06,0.29803594]
[1738074818079,0.27350282,672.39,671.06,0.29803594]
[1738074818283,0.27350282,672.39,671.06,1.40622203]
[1738074820583,0.29744199,672.4,671.06,1.40622203]
[1738074821384,0.27351556,672.39,671.06,1.40622203]
[1738074821979,0.27351556,672.39,671.06,0.29803594]
[1738074822283,0.29744199,672.4,671.06,0.29803594]
[1738074823388,0.2734771,672.39,671.06,0.29803594]
[1738074823688,0.29744199,672.4,671.06,0.29803594]
[1738074828893,0.29744199,672.4,671.28,1.10818609]
[1738074832393,0.29744199,672.4,671.06,0.29803594]
[1738074839895,0.71890923,672.88,671.06,0.29803594]
[1738074840090,1.55345007,672.82,671.06,0.29803594]
[1738074840293,0.57068442,672.81,671.06,0.29803594]
[1738074840490,0.57068884,672.8,671.06,0.29803594]
[1738074840797,0.57069325,672.79,671.06,0.29803594]
[1738074840996,0.57069767,672.78,671.06,0.29803594]
[1738074841197,0.27342368,672.77,671.2,1.10818609]
[1738074841397,0.27342368,672.77,671.21,0.29796933]
[1738074842496,0.27340615,672.76,671.21,0.29796933]
[1738074842696,0.27340615,672.77,671.21,0.29796933]
[1738074842999,1.40195395,672.78,671.21,0.29796933]
[1738074844641,1.40195395,672.78,671.42,1.10818609]
[1738074844642,0.29727399,672.78,671.42,1.10818609]
[1738074845293,0.29727399,672.78,671.44,0.29786727]
[1738074848297,0.29727399,672.78,671.57,1.10818609]
[1738074848497,0.27331278,672.77,671.57,1.10818609]
[1738074850503,0.29727399,672.78,671.57,1.10818609]
[1738074850803,0.27334918,672.77,671.57,1.10818609]
[1738074851003,0.29727399,672.78,671.57,1.10818609]
[1738074851205,0.27335011,672.77,671.57,1.10818609]
[1738074851405,0.27335011,672.77,671.44,0.29786727]
[1738074854605,0.29727399,672.78,671.44,0.29786727]
[1738074857108,0.27326309,672.77,671.44,0.29786727]
[1738074857304,1.55256642,673.14,671.44,0.29786727]
[1738074857511,0.5703818,673.13,671.44,0.29786727]
[1738074857808,0.27326238,673.12,671.44,0.29786727]
[1738074858010,0.27326238,673.11,671.44,0.29786727]
[1738074858201,0.27326238,673.1,671.44,0.29786727]
[1738074858401,0.27326238,673.09,671.44,0.29786727]
[1738074858606,0.27326238,673.08,671.44,0.29786727]
[1738074858801,0.27326238,673.07,671.44,0.29786727]
[1738074859002,0.27326238,673.06,671.44,0.29786727]
[1738074859203,0.27326238,673.05,671.44,0.29786727]
[1738074859404,0.27326238,673.04,671.44,0.29786727]
[1738074859603,0.27326238,673.12,671.44,0.29786727]
[1738074859801,0.27326238,673.11,671.44,0.29786727]
[1738074860005,0.27326238,673.1,671.44,0.29786727]
[1738074860308,0.57039946,673.09,671.44,0.29786727]
[1738074860510,0.27326238,673.08,671.44,0.29786727]
[1738074861514,0.27326238,673.08,671.56,1.10818609]
[1738074861914,0.27326238,673.08,671.58,0.29780517]
[1738074863623,0.29713708,673.09,671.58,0.29780517]
[1738074863624,0.27326238,673.07,671.58,0.29780517]
[1738074863925,0.27326238,673.06,671.58,0.29780517]
[1738074864125,0.27326238,673.05,671.58,0.29780517]
[1738074864324,0.27326238,673.08,671.58,0.29780517]
[1738074864525,0.29714591,673.07,671.58,0.29780517]
[1738074864718,0.27326238,673.06,671.58,0.29780517]
[1738074864921,0.29715474,673.05,671.58,0.29780517]
[1738074865121,0.27326238,673.04,671.58,0.29780517]
[1738074865922,0.57042595,673.03,671.58,0.29780517]
[1738074866122,0.29716357,673.03,671.58,0.29780517]
[1738074866323,0.27334348,673.02,671.58,0.29780517]
[1738074866523,0.57051588,673.01,671.58,0.29780517]
[1738074866827,0.5705203,673.0,671.58,0.29780517]
[1738074867028,0.57052471,672.99,671.58,0.29780517]
[1738074867225,0.57052913,672.98,671.58,0.29780517]
[1738074867527,0.57053354,672.97,671.58,0.29780517]
[1738074867725,1.55260683,673.18,671.58,0.29780517]
[1738074867726,0.57053796,672.96,671.58,0.29780517]
[1738074867921,0.57054238,672.95,671.58,0.29780517]
[1738074868126,0.27334348,672.94,671.58,0.29780517]
[1738074868425,0.29720773,672.93,671.58,0.29780517]
[1738074868626,0.27334348,672.92,671.58,0.29780517]
[1738074869128,0.29721656,672.91,671.58,0.29780517]
[1738074869322,0.27334348,672.9,671.58,0.29780517]
[1738074869527,0.29721656,672.91,671.58,0.29780517]
[1738074869826,0.27338312,672.9,671.58,0.29780517]
[1738074870027,0.2972254,672.89,671.58,0.29780517]
[1738074870228,0.27338312,672.88,671.58,0.29780517]
[1738074870526,0.29723423,672.87,671.58,0.29780517]
[1738074870722,0.27338312,672.86,671.58,0.29780517]
[1738074871227,0.29723423,672.87,671.58,0.29780517]
[1738074871527,0.27335947,672.86,671.58,0.29780517]
[1738074873929,0.29724307,672.85,671.58,0.29780517]
[1738074874130,0.27335947,672.84,671.58,0.29780517]
[1738074874729,0.2972519,672.83,671.58,0.29780517]
[1738074874929,0.27335947,672.82,671.58,0.29780517]
[1738074876325,0.29726074,672.81,671.58,0.29780517]
[1738074876528,0.27335947,672.8,671.58,0.29780517]
[1738074876728,0.29726957,672.79,671.58,0.29780517]
[1738074876929,0.27335947,672.78,671.58,0.29780517]
[1738074877232,0.29727841,672.77,671.58,0.29780517]
[1738074877430,0.27335947,672.76,671.58,0.29780517]
[1738074877626,0.29728725,672.75,671.58,0.29780517]
[1738074877930,0.27335947,672.74,671.58,0.29780517]
[1738074878133,0.29729609,672.73,671.58,0.29780517]
[1738074878329,0.27335947,672.72,671.58,0.29780517]
[1738074878526,0.57065998,672.72,671.58,0.29780517]
[1738074878726,0.27335947,672.71,671.58,0.29780517]
[1738074882433,0.29730935,672.7,671.3,1.55331717]
[1738074882731,0.27335947,672.69,671.31,0.29792495]
[1738074883533,0.27341035,672.68,671.31,0.29792495]
[1738074883728,0.27341035,672.67,671.31,0.29792495]
[1738074883936,0.27341035,672.69,671.31,0.29792495]
[1738074884237,0.27341035,672.68,671.31,0.29792495]
[1738074884430,0.27341035,672.69,671.31,0.29792495]
[1738074884630,0.27341035,672.68,671.31,0.29792495]
[1738074884934,0.29730935,672.7,671.31,0.29792495]
[1738074885131,0.27339051,672.69,671.31,0.29792495]
[1738074887335,0.27339051,672.69,671.36,1.10818609]
[1738074889334,0.29730935,672.7,671.36,1.10818609]
[1738074889535,0.27342199,672.69,671.36,1.10818609]
[1738074890041,0.27342199,672.69,671.31,0.29792495]
[1738074890542,0.29730935,672.7,671.31,0.29792495]
[1738074890739,0.27342474,672.69,671.31,0.29792495]
[1738074891638,0.29730935,672.7,671.31,0.29792495]
[1738074891839,0.27342681,672.69,671.31,0.29792495]
[1738074893638,0.29731818,672.68,671.31,0.29792495]
[1738074893840,0.27343468,672.67,671.31,0.29792495]
[1738074894041,0.57075728,672.67,671.31,0.29792495]
[1738074894340,0.27343468,672.66,671.31,0.29792495]
[1738074896037,0.27343546,672.65,671.31,0.29792495]
[1738074896342,0.27343546,672.64,671.31,0.29792495]
[1738074896542,0.27343546,672.63,671.31,0.29792495]
[1738074896743,0.27343546,672.62,671.31,0.29792495]
[1738074896940,0.2973226,672.67,671.31,0.29792495]
[1738074896941,0.27343546,672.61,671.31,0.29792495]
[1738074897142,0.27343546,672.66,671.31,0.29792495]
[1738074897343,0.27343546,672.65,671.31,0.29792495]
[1738074897538,0.27343546,672.66,671.31,0.29792495]
[1738074897745,0.27343546,672.65,671.31,0.29792495]
[1738074898044,0.27343546,672.64,671.31,0.29792495]
[1738074898244,0.27343546,672.66,671.31,0.29792495]
[1738074898444,0.27343546,672.65,671.31,0.29792495]
[1738074898644,0.27343546,672.66,671.31,0.29792495]
[1738074898847,0.27343546,672.65,671.31,0.29792495]
[1738074899041,0.27343546,672.66,671.31,0.29792495]
[1738074899239,0.27343546,672.65,671.31,0.29792495]
[1738074899744,0.27343546,672.64,671.31,0.29792495]
[1738074899945,0.27343546,672.66,671.31,0.29792495]
[1738074900146,0.2973226,672.67,671.31,0.29792495]
[1738074900147,0.27343546,672.65,671.31,0.29792495]
[1738074900346,0.27343546,672.66,671.31,0.29792495]
[1738074900648,0.57076691,672.65,671.31,0.29792495]